bitfinex/quotes_SOLUSD_20251201
["timestamp","ask_amount","ask_price","bid_price","bid_amount"]
[1764604750397,10.5703367,125.23,125.2,0.2]
[1764604750604,75.0,125.25,125.2,17.28713591]
[1764604750789,0.71,125.26,125.21,10.5703367]
[1764604750991,75.0,125.25,125.2,0.2]
[1764604751194,10.5703367,125.23,125.2,0.2]
[1764604751490,11.2803367,125.24,125.21,9.1]
[1764604751684,0.71,125.24,125.21,9.1]
[1764604751906,0.71,125.23,125.21,9.1]
[1764604752086,0.71,125.25,125.21,19.6703367]
[1764604752286,0.71,125.25,125.22,10.5703367]
[1764604752498,0.71,125.25,125.22,18.55572383]
[1764604752701,0.71,125.28,125.24,10.5703367]
[1764604752905,0.71,125.27,125.25,9.1]
[1764604753088,86.2803367,125.27,125.22,18.55572383]
[1764604753285,10.5703367,125.26,125.22,9.1]
[1764604753498,11.2803367,125.26,125.22,9.1]
[1764604753699,89.1803367,125.25,125.2,8.18713402]
[1764604753896,2.9,125.24,125.21,9.1]
[1764604754101,3.61,125.24,125.21,9.1]
[1764604754386,0.71,125.23,125.21,19.6703367]
[1764604754593,0.71,125.23,125.21,27.6564001]
[1764604755709,2.9,125.24,125.21,27.6564001]
[1764604755895,3.61,125.24,125.21,27.6564001]
[1764604756215,2.9,125.24,125.22,10.5703367]
[1764604756597,2.9,125.24,125.23,18.55564373]
[1764604756794,2.9,125.28,125.23,38.54891131]
[1764604757000,2.9,125.3,125.26,10.5703367]
[1764604757208,3.61,125.3,125.27,9.1]
[1764604757507,0.71,125.29,125.27,9.1]
[1764604758089,0.71,125.29,125.23,18.55564373]
[1764604758090,10.5703367,125.28,125.23,18.55564373]
[1764604758290,10.5703367,125.28,125.23,7.98530703]
[1764604758627,0.71,125.27,125.24,17.08436525]
[1764604759495,0.71,125.27,125.24,9.1]
[1764604760218,0.71,125.27,125.25,9.1]
[1764604760390,0.71,125.27,125.22,19.96424276]
[1764604760591,16.6493399,125.26,125.21,7.98658254]
[1764604760902,16.6493399,125.26,125.22,9.1]
[1764604761216,75.0,125.27,125.22,25.7493399]
[1764604761513,0.71,125.26,125.22,25.7493399]
[1764604762102,75.71,125.29,125.24,16.6493399]
[1764604762415,100.0,125.27,125.25,25.7493399]
[1764604762623,100.0,125.27,125.25,17.0834933]
[1764604763223,100.71,125.27,125.25,17.0834933]
[1764604763428,100.0,125.27,125.25,33.7328332]
[1764604764022,100.0,125.27,125.26,16.6493399]
[1764604764227,100.0,125.27,125.26,9.1]
[1764604764434,100.0,125.27,125.25,44.59291304]
[1764604764599,100.0,125.27,125.26,17.08339453]
[1764604765205,100.71,125.27,125.26,7.98339453]
[1764604765406,100.71,125.27,125.26,17.08339453]
[1764604765805,100.0,125.27,125.26,17.08339453]
[1764604766002,175.71,125.27,125.24,7.98405915]
[1764604766206,0.71,125.26,125.25,9.1]
[1764604766717,0.71,125.26,125.23,27.94853897]
[1764604766919,0.71,125.26,125.24,9.1]
[1764604767516,100.0,125.27,125.24,9.1]
[1764604767718,100.0,125.27,125.25,16.6493399]
[1764604768103,0.71,125.26,125.25,9.1]
[1764604769005,100.0,125.27,125.25,9.1]
[1764604769208,100.71,125.27,125.25,9.1]
[1764604769405,100.0,125.27,125.25,25.7493399]
[1764604769613,100.0,125.27,125.25,9.13]
[1764604769806,100.0,125.27,125.25,25.7493399]
[1764604770006,100.0,125.27,125.26,9.1]
[1764604770421,100.71,125.27,125.26,9.1]
[1764604770905,100.71,125.27,125.26,17.08339453]
[1764604771110,100.0,125.27,125.26,33.73273443]
[1764604771326,100.0,125.27,125.26,17.08339453]
[1764604772525,100.0,125.27,125.26,33.73273443]
[1764604774413,100.0,125.27,125.26,24.63273443]
[1764604774624,100.0,125.27,125.26,33.73273443]
[1764604775329,100.0,125.27,125.26,24.63273443]
[1764604775504,100.0,125.27,125.26,33.73273443]
[1764604776014,100.0,125.27,125.26,17.08339453]
[1764604778141,100.0,125.27,125.26,33.73273443]
[1764604780215,100.0,125.27,125.26,33.76273443]
[1764604780415,0.43146655,125.27,125.26,59.02370492]
[1764604780645,1e-08,125.27,125.26,59.36418082]
[1764604780815,1e-08,125.27,125.26,33.47267935]
[1764604781013,1e-08,125.27,125.26,42.71484092]
[1764604781338,2.9,125.35,125.29,16.308864]
[1764604781527,3.6,125.35,125.31,16.6493399]
[1764604781707,0.7,125.34,125.32,9.1]
[1764604782323,0.7,125.34,125.32,25.7493399]
[1764604782521,0.7,125.34,125.33,7.9789356]
[1764604782721,3.6,125.35,125.33,7.9789356]
[1764604782931,3.6,125.35,125.34,9.1]
[1764604783127,2.9,125.35,125.34,9.1]
[1764604783746,3.6,125.35,125.34,9.1]
[1764604785328,100.0,125.37,125.34,33.72763892]
[1764604785529,100.7,125.37,125.34,24.62763892]
[1764604785744,100.7,125.37,125.35,9.1]
[1764604786138,100.7,125.37,125.36,9.1]
[1764604786949,100.7,125.37,125.34,19.94574756]
[1764604786950,0.7,125.36,125.34,19.94574756]
[1764604787127,0.6,125.35,125.34,9.1]
[1764604787328,1.3,125.35,125.3,16.308864]
[1764604787632,0.6,125.34,125.31,9.1]
[1764604787831,1.3,125.34,125.31,53.67967363]
[1764604788351,1.3,125.34,125.31,37.03033373]
[1764604788655,1.3,125.34,125.31,44.57967363]
[1764604788841,1.3,125.34,125.32,25.7493399]
[1764604790061,1.3,125.34,125.26,8.95210649]
[1764604790062,17.9493399,125.33,125.24,39.92334717]
[1764604790231,0.4,125.32,125.27,16.6493399]
[1764604790427,1.1,125.32,125.28,9.1]
[1764604790954,1.1,125.32,125.28,25.7493399]
[1764604791326,0.7,125.31,125.29,9.1]
[1764604791762,0.7,125.31,125.24,59.88502075]
[1764604791943,0.7,125.31,125.27,16.6493399]
[1764604792254,0.7,125.31,125.28,17.08212005]
[1764604792830,17.3493399,125.31,125.28,7.98212005]
[1764604793036,92.3493399,125.31,125.29,9.1]
[1764604793230,0.7,125.3,125.29,9.1]
[1764604794247,0.7,125.3,125.29,17.08148295]
[1764604794433,0.7,125.3,125.28,7.9820507]
[1764604794755,0.7,125.3,125.29,9.1]
[1764604794956,16.6493399,125.33,125.29,9.1]
[1764604795136,0.7,125.32,125.29,9.1]
[1764604795537,75.7,125.32,125.29,9.1]
[1764604795735,0.7,125.31,125.29,9.1]
[1764604796061,0.7,125.31,125.3,7.98084596]
[1764604796232,0.7,125.31,125.3,17.06084596]
[1764604797139,0.7,125.33,125.3,17.06084596]
[1764604797347,0.7,125.33,125.3,37.01296088]
[1764604797862,0.7,125.33,125.3,53.66230078]
[1764604799043,0.7,125.33,125.3,37.01296088]
[1764604799555,0.7,125.33,125.3,27.93296088]
[1764604799754,0.7,125.33,125.31,9.08]
[1764604800354,100.0,125.37,125.31,9.08]
[1764604800655,100.0,125.37,125.33,16.6493399]
[1764604801161,100.0,125.37,125.29,8.80994492]
[1764604801162,0.7,125.36,125.29,8.80994492]
[1764604801377,92.3493399,125.36,125.3,16.6493399]
[1764604801657,75.0,125.35,125.3,16.6493399]
[1764604801832,75.0,125.32,125.29,8.80994492]
[1764604802033,0.7,125.31,125.29,8.80994492]
[1764604802248,75.0,125.33,125.29,8.80994492]
[1764604802249,8.80994492,125.33,125.29,8.80994492]
[1764604802463,0.7,125.32,125.29,8.80994492]
[1764604802647,75.7,125.32,125.29,8.80994492]
[1764604802848,0.7,125.32,125.29,17.88994492]
[1764604803047,0.67,125.31,125.29,17.88994492]
[1764604803364,17.3193399,125.31,125.27,27.93928081]
[1764604803662,91.6493399,125.3,125.28,9.08]
[1764604803833,0.67,125.3,125.28,9.08]
[1764604804450,75.67,125.3,125.28,9.08]
[1764604804646,75.67,125.3,125.27,27.93928081]
[1764604804847,0.67,125.29,125.27,27.93928081]
[1764604805045,83.80994492,125.32,125.27,44.58862071]
[1764604805244,0.67,125.29,125.27,7.98275724]
[1764604805649,0.67,125.29,125.27,17.06275724]
[1764604806537,16.978864,125.29,125.27,9.08]
[1764604806741,83.80994492,125.32,125.27,25.7293399]
[1764604806940,0.67,125.31,125.28,16.6493399]
[1764604807461,0.67,125.33,125.27,9.08]
[1764604807674,0.67,125.31,125.27,16.6493399]
[1764604807842,0.67,125.31,125.28,9.08]
[1764604808041,0.67,125.33,125.29,25.7293399]
[1764604808351,0.67,125.33,125.3,16.6493399]
[1764604808551,0.67,125.33,125.31,7.98020908]
[1764604808746,0.67,125.33,125.32,9.08]
[1764604809881,75.0,125.3,125.24,16.6493399]
[1764604810047,16.6493399,125.29,125.26,9.08]
[1764604810248,17.3193399,125.29,125.26,9.08]
[1764604810450,17.3193399,125.29,125.24,45.29568291]
[1764604810451,16.6493399,125.27,125.25,9.08]
[1764604810846,17.3193399,125.27,125.25,9.08]
[1764604811243,75.0,125.28,125.23,7.98530703]
[1764604811244,17.3193399,125.26,125.23,7.98530703]
[1764604811566,92.3193399,125.26,125.23,17.06530703]
[1764604811858,16.6493399,125.24,125.2,20.16719641]
[1764604812037,91.6493399,125.24,125.21,17.06658254]
[1764604812237,0.67,125.23,125.21,17.06658254]
[1764604812654,16.6493399,125.24,125.21,17.06658254]
[1764604812860,92.3193399,125.24,125.21,17.06658254]
[1764604813272,0.67,125.23,125.21,17.06658254]
[1764604813564,17.3193399,125.23,125.2,0.2]
[1764604813763,16.6493399,125.22,125.2,0.2]
[1764604813966,25.45928482,125.21,125.2,0.2]
[1764604814261,25.45928482,125.21,125.17,5.1317383]
[1764604814262,8.80994492,125.18,125.17,5.1317383]
[1764604814441,107.9582039,125.19,125.17,5.1317383]
[1764604814635,0.67,125.18,125.17,5.1317383]
[1764604815455,0.67,125.18,125.17,13.12087307]
[1764604815648,0.67,125.18,125.17,5.1317383]
[1764604816365,9.47994492,125.18,125.17,5.1317383]
[1764604816579,109.25994295,125.18,125.17,4.4117383]
[1764604818465,175.11880892,125.16,125.15,0.2]
[1764604818663,208.98008348,125.16,125.15,0.2]
[1764604818847,201.66031039,125.16,125.15,0.2]
[1764604819167,185.01097049,125.16,125.15,0.2]
[1764604819368,201.66031039,125.16,125.15,0.2]
[1764604819756,83.80994492,125.16,125.15,0.2]
[1764604820263,84.47994492,125.16,125.15,0.2]
[1764604820461,95.26739691,125.16,125.15,0.2]
[1764604820657,84.47994492,125.16,125.15,0.2]
[1764604821059,16.308864,125.17,125.15,0.2]
[1764604821262,8.80994492,125.16,125.15,0.2]
[1764604821569,75.67,125.17,125.15,0.2]
[1764604822073,86.31529042,125.17,125.15,0.2]
[1764604822373,0.67,125.21,125.16,20.42529042]
[1764604822574,0.67,125.24,125.2,7.98722044]
[1764604822749,75.0,125.25,125.2,27.71251086]
[1764604823066,16.978864,125.24,125.2,28.41251086]
[1764604823257,85.64529042,125.26,125.21,11.34529042]
[1764604823457,9.47994492,125.25,125.21,11.34529042]
[1764604823643,0.67,125.25,125.21,11.34529042]
[1764604823842,85.64529042,125.25,125.2,38.60056197]
[1764604824044,11.31529042,125.24,125.2,37.03527155]
[1764604824462,8.80994492,125.24,125.21,0.7]
[1764604824856,8.80994492,125.24,125.21,8.6860535]
[1764604825270,8.80994492,125.24,125.21,7.9860535]
[1764604825661,16.308864,125.25,125.22,0.7]
[1764604825981,9.47994492,125.25,125.21,19.33134392]
[1764604826168,8.80994492,125.25,125.21,18.63134392]
[1764604826371,86.31529042,125.27,125.22,11.34529042]
[1764604826675,8.80994492,125.27,125.23,19.72529042]
[1764604826866,8.80994492,125.27,125.24,7.98466943]
[1764604827768,16.308864,125.28,125.24,27.94634301]
[1764604827969,16.308864,125.28,125.25,0.7]
[1764604828174,95.31739691,125.27,125.24,7.98466943]
[1764604828376,84.67210649,125.27,125.24,7.98466943]
[1764604828575,95.31739691,125.27,125.24,7.98466943]
[1764604828954,11.36529042,125.26,125.21,31.30022243]
[1764604829160,11.36529042,125.26,125.22,7.98537063]
[1764604829459,16.308864,125.28,125.25,10.64529042]
[1764604829661,16.308864,125.28,125.26,9.08]
[1764604830184,16.308864,125.28,125.25,0.69]
[1764604830383,0.72,125.28,125.24,9.08]
[1764604830679,8.80994492,125.29,125.25,11.33529042]
[1764604830980,8.80994492,125.29,125.26,0.69]
[1764604831586,8.80994492,125.29,125.26,8.67312017]
[1764604831783,83.80994492,125.27,125.24,7.98409296]
[1764604832079,83.80994492,125.27,125.24,0.69]
[1764604832659,11.50745199,125.28,125.24,0.69]
[1764604832660,0.72,125.28,125.24,0.69]
[1764604832860,0.72,125.28,125.25,7.98403193]
[1764604833372,8.80994492,125.27,125.21,27.95303889]
[1764604833565,10.64529042,125.25,125.22,9.08]
[1764604833772,8.80994492,125.27,125.22,20.41529042]
[1764604833973,8.80994492,125.27,125.23,0.69]
[1764604834368,8.80994492,125.27,125.23,11.33529042]
[1764604834871,8.80994492,125.27,125.24,9.77]
[1764604835076,8.80994492,125.27,125.25,7.98403193]
[1764604835266,16.308864,125.29,125.25,8.67403193]
[1764604835472,8.80994492,125.28,125.25,17.75403193]
[1764604835870,11.35529042,125.29,125.25,17.75403193]
[1764604836191,11.35529042,125.29,125.25,37.71411177]
[1764604836510,8.90994492,125.3,125.26,11.33529042]
[1764604836679,0.1,125.3,125.27,11.33529042]
[1764604836997,0.1,125.3,125.29,7.98148295]
[1764604838197,0.1,125.3,125.29,8.67148295]
[1764604838403,0.1,125.3,125.29,19.31677337]
[1764604838877,0.1,125.3,125.29,8.67148295]
[1764604839192,0.1,125.3,125.29,17.75148295]
[1764604839687,0.1,125.3,125.29,28.39677337]
[1764604840797,0.1,125.3,125.29,19.31677337]
[1764604840980,0.1,125.3,125.29,28.39677337]
[1764604841694,0.1,125.3,125.29,7.98148295]
[1764604841877,0.81,125.3,125.28,7.98189518]
[1764604842473,0.81,125.3,125.27,29.03593228]
[1764604842474,0.81,125.3,125.27,7.98275724]
[1764604842689,11.45529042,125.3,125.27,7.98275724]
[1764604842997,0.81,125.3,125.27,7.98275724]
[1764604843699,11.45529042,125.3,125.27,7.98275724]
[1764604843896,10.64529042,125.29,125.27,7.98275724]
[1764604844084,11.45529042,125.3,125.27,7.98275724]
[1764604844796,0.81,125.3,125.27,7.98275724]
[1764604845172,11.45529042,125.3,125.27,7.98275724]
[1764604845403,11.45529042,125.3,125.27,17.06275724]
[1764604845698,11.45529042,125.3,125.27,7.98275724]
[1764604845895,0.81,125.3,125.27,7.98275724]
[1764604846080,11.45529042,125.3,125.27,7.98275724]
[1764604846269,0.1,125.3,125.29,10.64529042]
[1764604846469,0.1,125.3,125.29,9.08]
[1764604847172,0.1,125.3,125.29,17.06148295]
[1764604847374,0.1,125.3,125.29,17.75148295]
[1764604847574,0.1,125.3,125.29,28.39677337]
[1764604847988,1e-08,125.3,125.29,44.70563737]
[1764604848303,100.71,125.37,125.29,64.65934476]
[1764604848506,100.0,125.37,125.34,10.64529042]
[1764604848702,100.0,125.37,125.35,9.08]
[1764604848878,100.0,125.37,125.36,11.33529042]
[1764604849077,100.0,125.37,125.36,19.31231658]
[1764604849786,100.0,125.37,125.36,35.62118058]
[1764604851001,48.61017081,125.37,125.36,35.62118058]
[1764604851193,0.1,125.43,125.36,106.09416723]
[1764604851393,0.1,125.43,125.4,10.64529042]
[1764604851584,0.1,125.43,125.41,19.70529042]
[1764604851898,0.1,125.43,125.41,10.64529042]
[1764604852481,0.1,125.43,125.42,10.64529042]
[1764604853000,0.1,125.43,125.41,11.33529042]
[1764604853202,0.1,125.43,125.42,18.61850043]
[1764604853404,0.1,125.43,125.42,19.30850043]
[1764604855292,0.1,125.44,125.43,10.64529042]
[1764604855490,0.1,125.44,125.42,0.69]
[1764604855692,0.1,125.44,125.41,19.70529042]
[1764604856088,0.1,125.44,125.41,20.39529042]
[1764604856619,100.1,125.48,125.43,10.64529042]
[1764604856783,100.1,125.48,125.42,0.69]
[1764604856784,100.1,125.48,125.47,10.64529042]
[1764604857095,100.1,125.48,125.44,25.368864]
[1764604857096,100.1,125.48,125.45,19.70529042]
[1764604857418,100.1,125.48,125.46,7.97066794]
[1764604857608,100.1,125.48,125.46,18.61595836]
[1764604857911,100.81,125.48,125.45,7.97112558]
[1764604858514,185.74529042,125.48,125.44,7.9717601]
[1764604858713,10.64529042,125.46,125.42,7.97309682]
[1764604858921,10.64529042,125.46,125.37,39.87937034]
[1764604858922,85.64529042,125.44,125.37,0.69]
[1764604859099,10.64529042,125.44,125.39,10.64529042]
[1764604859426,11.35529042,125.44,125.4,7.97448165]
[1764604859597,0.71,125.43,125.4,7.97448165]
[1764604860307,11.35529042,125.45,125.4,39.24597621]
[1764604860621,0.71,125.45,125.4,39.24597621]
[1764604860817,16.308864,125.46,125.42,10.64529042]
[1764604861011,0.71,125.47,125.43,10.64529042]
[1764604861319,86.35529042,125.46,125.38,56.18561467]
[1764604861517,10.64529042,125.45,125.39,0.69]
[1764604861823,85.64529042,125.44,125.4,19.93564661]
[1764604862121,86.35529042,125.44,125.4,19.93564661]
[1764604862319,75.0,125.44,125.4,30.58093703]
[1764604862505,19.70529042,125.45,125.4,30.58093703]
[1764604862506,0.71,125.43,125.4,30.58093703]
[1764604862706,0.71,125.45,125.42,10.64529042]
[1764604862933,100.1,125.48,125.43,9.06]
[1764604863128,100.1,125.48,125.47,10.64529042]
[1764604863427,100.76,125.48,125.44,19.70529042]
[1764604863612,100.76,125.48,125.45,10.64529042]
[1764604863814,100.1,125.48,125.46,10.64529042]
[1764604864330,100.1,125.48,125.47,20.39529042]
[1764604864500,100.1,125.48,125.47,11.33529042]
[1764604864700,100.1,125.48,125.47,28.36532309]
[1764604866035,100.1,125.48,125.47,27.67532309]
[1764604866234,100.1,125.48,125.47,17.03003267]
[1764604866526,100.1,125.48,125.47,28.36532309]
[1764604867623,1e-08,125.48,125.47,28.36532309]
[1764604868917,100.0,125.55,125.49,35.90626091]
[1764604869212,0.66,125.54,125.49,16.308864]
[1764604869411,10.64529042,125.5,125.47,27.89511436]
[1764604869633,10.64529042,125.48,125.46,7.97066794]
[1764604869824,75.0,125.5,125.46,7.97066794]
[1764604869825,9.72,125.49,125.46,7.97066794]
[1764604870002,83.95210649,125.48,125.43,27.903277]
[1764604870200,9.06,125.47,125.39,0.69]
[1764604870505,10.64529042,125.42,125.37,10.64529042]
[1764604870728,10.64529042,125.42,125.35,17.03766254]
[1764604870729,10.64529042,125.42,125.36,19.31193332]
[1764604870929,20.36529042,125.41,125.36,10.64529042]
[1764604871412,0.66,125.4,125.36,10.64529042]
[1764604871730,0.66,125.4,125.37,10.64529042]
[1764604872139,75.66,125.42,125.38,10.64529042]
[1764604872318,86.30529042,125.42,125.37,20.39529042]
[1764604872630,9.06,125.43,125.39,10.64529042]
[1764604872828,0.66,125.45,125.42,10.64529042]
[1764604873014,8.80994492,125.47,125.43,10.64529042]
[1764604873217,75.66,125.48,125.44,10.64529042]
[1764604873421,0.66,125.48,125.44,10.64529042]
[1764604873608,94.70529042,125.49,125.42,0.69]
[1764604873815,0.66,125.47,125.43,9.06]
[1764604874326,0.66,125.47,125.42,10.64529042]
[1764604874327,86.30529042,125.47,125.42,9.06]
[1764604874512,75.66,125.47,125.42,19.70529042]
[1764604874714,0.66,125.46,125.43,7.97257434]
[1764604875438,11.30529042,125.46,125.42,7.97317374]
[1764604875756,84.06,125.47,125.42,10.64529042]
[1764604875917,9.72,125.47,125.43,10.64529042]
[1764604876118,9.72,125.47,125.44,10.64529042]
[1764604876416,9.72,125.47,125.45,10.64529042]
[1764604876621,0.66,125.47,125.45,10.64529042]
[1764604876834,0.66,125.47,125.46,7.97066794]
[1764604878071,0.66,125.47,125.44,18.61673075]
[1764604878379,0.66,125.47,125.35,0.69]
[1764604878380,83.80994492,125.44,125.35,0.69]
[1764604878673,10.64529042,125.41,125.36,38.56488199]
[1764604878871,178.51523534,125.42,125.37,10.64529042]
[1764604879047,179.17523534,125.42,125.37,10.64529042]
[1764604879250,0.66,125.41,125.38,10.64529042]
[1764604879453,0.66,125.41,125.37,10.64529042]
[1764604879753,11.30529042,125.41,125.36,47.60488199]
[1764604879961,0.66,125.41,125.36,47.60488199]
[1764604880161,0.66,125.41,125.36,48.29488199]
[1764604880479,166.78216362,125.44,125.36,48.29488199]
[1764604880480,95.11523534,125.44,125.39,10.64529042]
[1764604880775,95.11523534,125.44,125.4,7.97448165]
[1764604880959,0.66,125.43,125.4,7.97448165]
[1764604881689,0.66,125.43,125.4,38.55597621]
[1764604882176,0.66,125.43,125.4,27.91068579]
[1764604882508,0.66,125.43,125.39,16.60633118]
[1764604883788,1.06,125.43,125.39,16.60633118]
[1764604884301,1.06,125.43,125.4,27.91068579]
[1764604884801,0.66,125.42,125.4,27.91068579]
[1764604885365,0.66,125.42,125.4,7.97448165]
[1764604885570,17.26633118,125.42,125.4,7.97448165]
[1764604885973,17.26633118,125.42,125.38,19.93926678]
[1764604885974,26.61843767,125.41,125.33,39.89437411]
[1764604886179,0.14216157,125.39,125.35,7.97766254]
[1764604886388,100.55843767,125.39,125.35,7.97766254]
[1764604886692,26.30633118,125.38,125.35,7.97766254]
[1764604886994,9.7,125.38,125.35,7.97766254]
[1764604887185,0.66,125.37,125.35,7.97766254]
[1764604887374,0.66,125.38,125.35,7.97766254]
[1764604887574,0.66,125.38,125.35,27.9218189]
[1764604888666,8.95210649,125.37,125.34,0.2]
[1764604888875,175.55843767,125.37,125.34,0.2]
[1764604889097,0.69,125.36,125.34,8.17827837]
[1764604889300,17.84994492,125.38,125.34,8.17827837]
[1764604889494,18.53994492,125.38,125.34,8.17827837]
[1764604889694,9.73,125.38,125.34,28.12402593]
[1764604889893,9.73,125.38,125.34,44.73035711]
[1764604890278,0.69,125.37,125.34,8.17827837]
[1764604891629,1.09,125.36,125.34,8.17827837]
[1764604891774,1.09,125.36,125.34,0.2]
[1764604891975,17.69633118,125.36,125.34,0.2]
[1764604892196,0.4,125.35,125.34,0.2]
[1764604892396,17.29633118,125.36,125.34,0.2]
[1764604892881,101.64843767,125.35,125.34,0.2]
[1764604893304,8.95210649,125.32,125.25,0.69]
[1764604893602,18.01210649,125.32,125.28,16.60633118]
[1764604893780,9.06,125.32,125.28,16.60633118]
[1764604893980,26.88849275,125.34,125.29,0.69]
[1764604894177,0.68,125.33,125.27,0.69]
[1764604894381,0.68,125.33,125.29,7.98148295]
[1764604894602,34.61843767,125.32,125.26,16.60633118]
[1764604894778,91.60633118,125.31,125.26,7.98317129]
[1764604894984,16.60633118,125.3,125.26,7.98317129]
[1764604895184,17.28633118,125.3,125.26,7.98317129]
[1764604895687,0.68,125.29,125.26,7.98317129]
[1764604895900,0.68,125.29,125.24,52.87586102]
[1764604895901,0.68,125.29,125.25,27.94388677]
[1764604896409,0.68,125.29,125.25,7.98380693]
[1764604896710,25.66633118,125.3,125.25,24.59013811]
[1764604896893,9.06,125.32,125.28,16.60633118]
[1764604897289,9.74,125.32,125.27,16.60633118]
[1764604897490,9.74,125.32,125.27,17.29633118]
[1764604898395,1.08,125.31,125.27,19.95582022]
[1764604898593,1.08,125.31,125.27,27.93857746]
[1764604898811,0.68,125.3,125.27,7.98275724]
[1764604899014,25.66633118,125.29,125.26,7.98322698]
[1764604899204,25.66633118,125.29,125.24,7.98466943]
[1764604899205,0.68,125.28,125.24,7.98466943]
[1764604899712,17.28633118,125.28,125.24,7.98466943]
[1764604900090,16.60633118,125.28,125.24,7.98466943]
[1764604900292,17.28633118,125.27,125.24,27.94634301]
[1764604900511,16.60633118,125.26,125.24,19.96167358]
[1764604900715,0.68,125.26,125.24,19.96167358]
[1764604901288,16.60633118,125.28,125.24,19.96167358]
[1764604901612,16.60633118,125.27,125.22,27.95080657]
[1764604901790,17.28633118,125.28,125.22,45.24713775]
[1764604902184,16.60633118,125.27,125.22,28.64080657]
[1764604902389,16.60633118,125.27,125.22,7.98594473]
[1764604902390,17.86994492,125.26,125.22,7.98594473]
[1764604902608,17.86994492,125.26,125.22,8.67594473]
[1764604903204,18.54994492,125.26,125.22,8.67594473]
[1764604903896,18.54994492,125.26,125.22,7.98594473]
[1764604904099,0.68,125.25,125.22,7.98594473]
[1764604904419,17.28633118,125.25,125.22,7.98594473]
[1764604904597,0.68,125.25,125.22,7.98594473]
[1764604904909,34.4762761,125.26,125.22,7.98594473]
[1764604905108,35.1562761,125.26,125.22,7.98594473]
[1764604905607,16.74849275,125.25,125.22,7.98594473]
[1764604905805,16.60633118,125.23,125.22,7.98594473]
[1764604906127,92.28633118,125.23,125.21,0.2]
[1764604906298,17.28633118,125.22,125.21,0.2]
[1764604907221,26.34633118,125.22,125.21,0.2]
[1764604907537,26.74633118,125.22,125.21,0.2]
[1764604908412,10.14,125.22,125.21,0.2]
[1764604908916,35.29843767,125.22,125.21,0.2]
[1764604909411,18.69210649,125.22,125.21,0.2]
[1764604909793,35.29843767,125.22,125.21,0.2]
[1764604910321,43.2843824,125.22,125.21,0.2]
[1764604911595,35.29843767,125.22,125.21,0.2]
[1764604912106,43.2843824,125.22,125.21,0.2]
[1764604912618,35.29843767,125.22,125.21,0.2]
[1764604912997,9.06,125.22,125.21,0.2]
[1764604913314,8.80696471,125.24,125.21,8.18651825]
[1764604913315,34.4762761,125.24,125.21,8.18651825]
[1764604913615,35.1562761,125.24,125.21,0.2]
[1764604913921,25.66633118,125.28,125.22,17.29633118]
[1764604914102,26.34633118,125.28,125.22,17.29633118]
[1764604914300,91.60633118,125.27,125.22,0.69]
[1764604915043,9.74,125.28,125.24,27.94634301]
[1764604915217,9.06,125.28,125.24,44.55267419]
[1764604915404,17.28633118,125.3,125.25,0.69]
[1764604915607,26.34633118,125.3,125.25,0.69]
[1764604915918,75.68,125.33,125.27,16.60633118]
[1764604916236,9.74,125.32,125.27,16.60633118]
[1764604916727,9.06,125.32,125.28,0.69]
[1764604917097,9.06,125.32,125.29,24.58781413]
[1764604917407,33.39399329,125.35,125.29,44.54152152]
[1764604917408,75.0,125.34,125.29,44.54152152]
[1764604917609,91.60633118,125.34,125.29,0.69]
[1764604917910,84.74,125.34,125.3,0.69]
[1764604918113,101.34633118,125.34,125.3,0.69]
[1764604918622,159.06,125.36,125.31,16.60633118]
[1764604919120,159.06,125.36,125.32,7.97957229]
[1764604919121,159.74,125.36,125.32,7.97957229]
[1764604919812,184.32355135,125.36,125.31,25.27632505]